fUST/lending_fUST_20240816
["ID","MTS","AMOUNT","RATE_DAILY","PERIOD"]
[335067868,1723803061515,-500.0,0.00044657,120]
[335067869,1723803061524,-151.0,0.00044657,120]
[335067870,1723803061534,-151.0,0.00044657,120]
[335067871,1723803061544,-500.0,0.00044657,120]
[335067872,1723803061553,-503.04963006,0.00044657,120]
[335067873,1723803061563,-444.42778371,0.00044657,120]
[335067874,1723803061572,-500.0,0.00044657,120]
[335067875,1723803061582,-500.0,0.00044657,120]
[335067876,1723803061592,-500.0,0.00044657,120]
[335067877,1723803061603,-500.0,0.00044657,120]
[335067878,1723803061613,-500.0,0.00044657,120]
[335067879,1723803061623,-500.0,0.00044657,120]
[335067880,1723803061633,-500.0,0.00044657,120]
[335067881,1723803061643,-500.0,0.00044657,120]
[335067882,1723803061653,-500.0,0.00044657,60]
[335067883,1723803061663,-500.0,0.00044657,120]
[335067884,1723803061672,-500.0,0.00044657,120]
[335067885,1723803061682,-503.84308269,0.00044657,120]
[335067886,1723803061693,-500.0,0.00044657,120]
[335067887,1723803061702,-824.24,0.00044657,120]
[335067888,1723803061712,-576.27,0.00044657,120]
[335067889,1723803061722,-500.0,0.00044657,120]
[335067890,1723803061732,-500.0,0.00044657,120]
[335067891,1723803061742,-500.0,0.00044657,120]
[335067892,1723803061752,-529.69,0.00044657,120]
[335067893,1723803061761,-500.0,0.00044657,120]
[335067894,1723803061771,-2868.91,0.00044657,120]
[335067895,1723803061781,-638.16978429,0.00044657,120]
[335067896,1723803061791,-170.03817695,0.00044657,120]
[335067897,1723803061874,-500.0,0.00044657,120]
[335067898,1723803061884,-500.0,0.00044657,120]
[335067899,1723803061894,-503.56493073,0.00044657,120]
[335067900,1723803061904,-445.33389801,0.00044657,120]
[335067901,1723803061913,-500.0,0.00044657,120]
[335067902,1723803061923,-500.0,0.00044657,120]
[335067903,1723803061933,-500.0,0.00044657,120]
[335067904,1723803061942,-500.0,0.00044657,120]
[335067905,1723803061951,-500.0,0.00044657,120]
[335067906,1723803061960,-685.58,0.00044657,120]
[335067907,1723803061970,-507.84477506,0.00044657,120]
[335067908,1723803061979,-708.93,0.00044657,120]
[335067909,1723803061989,-463.92227276,0.00044657,120]
[335067910,1723803061998,-500.0,0.00044657,120]
[335067911,1723803062008,-632.37,0.00044657,120]
[335067912,1723803062016,-500.0,0.00044657,120]
[335067913,1723803062026,-519.49839263,0.00044657,120]
[335067914,1723803062036,-589.22163675,0.00044657,120]
[335067915,1723803062049,-270.74365803,0.00044657,120]
[335067916,1723803062058,-2445.8,0.00044657,120]
[335067917,1723803062067,-593.47,0.00044657,120]
[335067918,1723803062076,-785.29,0.00044657,120]
[335067919,1723803062085,-500.0,0.00044657,120]
[335067920,1723803062094,-500.0,0.00044657,120]
[335067921,1723803062107,-500.0,0.00044657,120]
[335067922,1723803062117,-500.0,0.00044657,120]
[335067923,1723803062126,-500.0,0.00044657,120]
[335067924,1723803062136,-500.0,0.00044657,120]
[335067925,1723803062147,-500.0,0.00044657,120]
[335067926,1723803062156,-592.29,0.00044657,120]
[335067927,1723803062166,-500.0,0.00044657,120]
[335067928,1723803062176,-500.0,0.00044657,120]
[335067929,1723803062189,-624.98,0.00044657,120]
[335067930,1723803062199,-500.0,0.00044657,120]
[335067931,1723803062209,-500.0,0.00044657,120]
[335067932,1723803062219,-500.0,0.00044657,120]
[335067933,1723803062229,-500.0,0.00044657,120]
[335067934,1723803062239,-500.0,0.00044657,120]
[335067935,1723803062248,-526.44,0.00044657,120]
[335067936,1723803062258,-500.0,0.00044657,120]
[335067937,1723803062268,-500.0,0.00044657,120]
[335067938,1723803062278,-500.0,0.00044657,120]
[335067939,1723803062287,-500.0,0.00044657,120]
[335067940,1723803062299,-500.0,0.00044657,120]
[335067941,1723803062308,-500.0,0.00044657,120]
[335067942,1723803062317,-500.0,0.00044657,120]
[335067943,1723803062327,-500.0,0.00044657,120]
[335067944,1723803062337,-500.0,0.00044657,120]
[335067945,1723803062347,-583.08,0.00044657,120]
[335067946,1723803062357,-543.995144,0.00044657,120]
[335067947,1723803062367,-543.995144,0.00044657,120]
[335067948,1723803062377,-821.78,0.00044657,120]
[335067949,1723803062387,-564.05464561,0.00044657,120]
[335067950,1723803062397,-689.66,0.00044657,120]
[335067951,1723803062407,-500.0,0.00044657,120]
[335067952,1723803062417,-500.0,0.00044657,120]
[335067953,1723803062427,-1158.78,0.00044657,120]
[335067954,1723803062437,-500.0,0.00044657,120]
[335067955,1723803062448,-500.0,0.00044657,120]
[335067956,1723803062459,-151.0,0.00044657,120]
[335067957,1723803062470,-500.0,0.00044657,120]
[335067958,1723803062479,-500.0,0.00044657,120]
[335067959,1723803062489,-930.19,0.00044657,120]
[335067960,1723803062498,-500.0,0.00044657,120]
[335067961,1723803062508,-500.0,0.00044657,120]
[335067962,1723803062517,-500.0,0.00044657,120]
[335067963,1723803062527,-219.98973251,0.00044657,120]
[335067964,1723803062536,-500.0,0.00044657,120]
[335067965,1723803062546,-896.47,0.00044657,120]
[335067966,1723803062555,-500.0,0.00044657,120]
[335067967,1723803062564,-399.89337579,0.00044657,120]
[335067968,1723803062574,-879.45,0.00044657,120]
[335067969,1723803062584,-500.0,0.00044657,120]
[335067970,1723803062593,-200.0,0.00044657,7]
[335067971,1723803062602,-502.480702,0.00044657,120]
[335067972,1723803062613,-500.0,0.00044657,7]
[335067973,1723803062623,-502.480702,0.00044657,120]
[335067974,1723803062633,-500.0,0.00044657,120]
[335067975,1723803062643,-500.0,0.00044657,120]
[335067976,1723803062653,-500.0,0.00044657,120]
[335067977,1723803062662,-151.0,0.00044657,120]
[335067978,1723803062672,-629.25,0.00044657,120]
[335067979,1723803062681,-624.17,0.00044657,120]
[335067980,1723803062691,-502.56372739,0.00044657,120]
[335067981,1723803062701,-500.0,0.00044657,120]
[335067982,1723803062710,-505.64057004,0.00044657,120]
[335067983,1723803062719,-500.0,0.00044657,120]
[335067984,1723803062729,-500.0,0.00044657,120]
[335067985,1723803062739,-687.16,0.00044657,120]
[335067986,1723803062748,-500.0,0.00044657,120]
[335067987,1723803062758,-761.25,0.00044657,120]
[335067988,1723803062767,-503.22526641,0.00044657,120]
[335067989,1723803062778,-500.0,0.00044657,120]
[335067990,1723803062787,-550.27902867,0.00044657,120]
[335067991,1723803062797,-502.89189167,0.00044657,120]
[335067992,1723803062806,-500.0,0.00044657,120]
[335067993,1723803062816,-500.0,0.00044657,120]
[335067994,1723803062825,-500.0,0.00044657,120]
[335067995,1723803062834,-500.0,0.00044657,120]
[335067996,1723803062845,-500.0,0.00044657,120]
[335067997,1723803062854,-498.88922425,0.00044657,120]
[335067998,1723803062863,-500.0,0.00044657,120]
[335067999,1723803062872,-151.0,0.00044657,120]
[335068000,1723803062882,-500.0,0.00044657,120]
[335068001,1723803062891,-500.0,0.00044657,120]
[335068002,1723803062900,-500.0,0.00044657,120]
[335068003,1723803062910,-500.0,0.00044657,120]
[335068004,1723803062919,-368.6287082,0.00044657,120]
[335068005,1723803062928,-500.0,0.00044657,120]
[335068006,1723803062937,-500.0,0.00044657,120]
[335068007,1723803062946,-500.0,0.00044657,120]
[335068008,1723803062955,-500.0,0.00044657,120]
[335068009,1723803062964,-500.0,0.00044657,120]
[335068010,1723803062974,-500.0,0.00044657,120]
[335068011,1723803062983,-500.0,0.00044657,120]
[335068012,1723803062993,-500.0,0.00044657,120]
[335068013,1723803063002,-500.0,0.00044657,120]
[335068014,1723803063012,-504.90487746,0.00044657,120]
[335068015,1723803063021,-500.0,0.00044657,120]
[335068016,1723803063031,-1031.41,0.00044657,120]
[335068017,1723803063040,-503.92573673,0.00044657,120]
[335068018,1723803063050,-500.0,0.00044657,120]
[335068019,1723803063060,-500.0,0.00044657,120]
[335068020,1723803063072,-500.0,0.00044657,120]
[335068021,1723803063082,-1343.18,0.00044657,120]
[335068022,1723803063092,-500.0,0.00044657,120]
[335068023,1723803063104,-611.75,0.00044657,120]
[335068024,1723803063119,-500.0,0.00044657,120]
[335068025,1723803063129,-500.0,0.00044657,120]
[335068026,1723803063139,-966.61,0.00044657,120]
[335068027,1723803063149,-808.65,0.00044657,120]
[335068028,1723803063246,-500.0,0.00044657,120]
[335068029,1723803063256,-1034.88,0.00044657,120]
[335068030,1723803063265,-1229.06,0.00044657,120]
[335068031,1723803063276,-500.0,0.00044657,120]
[335068032,1723803063286,-1201.14,0.00044657,7]
[335068033,1723803063297,-182.640563,0.00044657,120]
[335068034,1723803063306,-959.69,0.00044657,120]
[335068035,1723803063316,-182.640563,0.00044657,120]
[335068036,1723803063325,-500.0,0.00044657,120]
[335068037,1723803063335,-500.0,0.00044657,120]
[335068038,1723803063345,-1842.05,0.00044657,120]
[335068039,1723803063354,-500.0,0.00044657,120]
[335068040,1723803063364,-500.0,0.00044657,120]
[335068041,1723803063373,-500.0,0.00044657,120]
[335068042,1723803063382,-500.0,0.00044657,120]
[335068043,1723803063392,-500.0,0.00044657,120]
[335068044,1723803063402,-502.34854049,0.00044657,120]
[335068045,1723803063411,-2453.73744383,0.00044657,120]
[335068046,1723803063635,-2127.39988805,0.00012782,2]
[335068047,1723803063645,-520.42439304,0.00012971,2]
[335068048,1723803063655,-223.44653164,0.00013594,2]
[335068049,1723803063665,-154.79103211,0.00013597,2]
[335068050,1723803063674,-410.95388748,0.0002,2]
[335068051,1723803063683,-179.452745,0.00032727,7]
[335068052,1723803063693,-668.715729,0.00032727,7]
[335068053,1723803063702,-1957.43349703,0.00041594,28]
[335068054,1723803063712,-179.452745,0.00043815,120]
[335068055,1723803063722,-179.452745,0.00043835,120]
[335068056,1723803063731,-179.452745,0.00043835,120]
[335068057,1723803063740,-179.452745,0.00043835,120]
[335068058,1723803063751,-668.715729,0.00044109,120]
[335068059,1723803063760,-179.452745,0.00044109,120]
[335068060,1723803063770,-668.715729,0.00044319,120]
[335068061,1723803063780,-668.715729,0.00044383,120]
[335068062,1723803063791,-1566.05255617,0.00044657,120]
[335068063,1723803063800,-1177.64,0.00044657,120]
[335068064,1723803063810,-502.6011353,0.00044657,120]
[335068065,1723803063831,-581.057176,0.00044657,120]
[335068066,1723803063847,-500.0,0.00044657,120]
[335068067,1723803063869,-734.29,0.00044657,120]
[335068068,1723803063890,-581.057176,0.00044657,120]
[335068069,1723803063909,-500.0,0.00044657,120]
[335068070,1723803063928,-500.0,0.00044657,120]
[335068071,1723803063944,-1491.73,0.00044657,120]
[335068072,1723803063959,-577.53,0.00044657,120]
[335068073,1723803063978,-500.0,0.00044657,120]
[335068074,1723803063998,-500.0,0.00044657,120]
[335068075,1723803064013,-750.73,0.00044657,120]
[335068076,1723803064026,-1000.33,0.00044657,120]
[335068077,1723803064044,-1197.34,0.00044657,120]
[335068078,1723803064061,-500.0,0.00044657,120]
[335068079,1723803064076,-504.58318639,0.00044657,120]
[335068080,1723803064090,-151.0,0.00044657,120]
[335068081,1723803064110,-500.0,0.00044657,120]
[335068082,1723803064126,-1058.26,0.00044657,120]
[335068083,1723803064142,-550.81,0.00044657,120]
[335068084,1723803064159,-724.15,0.00044657,120]
[335068085,1723803064174,-121.56616552,0.00044657,120]
[335068086,1723803120553,200.0,0.00027,120]
[335068093,1723803136487,200.0,0.00020333,14]
[335068095,1723803151874,200.0,0.00020333,14]
[335068096,1723803167735,200.0,0.00020333,14]
[335068097,1723803183760,200.0,9.9e-05,2]
[335068098,1723803199146,200.0,9.9e-05,2]
[335068099,1723803215205,200.0,9.9e-05,2]
[335068100,1723803230688,200.0,9.9e-05,2]
[335068101,1723803246114,200.0,9.9e-05,2]
[335068102,1723803262538,200.0,9.9e-05,2]
[335068103,1723803268487,4719.09219548,9.9e-05,2]
[335068104,1723803276086,405.30195188,9.9e-05,2]
[335068105,1723803278504,1735.60980599,9.9e-05,2]
[335068106,1723803278858,200.0,9.9e-05,2]
[335068107,1723803284135,2408.37231536,9.9e-05,2]
[335068108,1723803284533,218.66051313,9.9e-05,2]
[335068109,1723803287362,200.0,9.9e-05,2]
[335068110,1723803292985,886.65210123,9.9e-05,2]
[335068111,1723803293382,3735.36868077,9.9e-05,2]
[335068112,1723803295778,200.0,9.9e-05,2]
[335068113,1723803304305,200.0,9.9e-05,2]
[335068114,1723803313027,200.0,9.9e-05,2]
[335068115,1723803314546,218.66051313,9.9e-05,2]
[335068116,1723803336574,200.0,9.9e-05,2]
[335068117,1723803344997,200.0,9.9e-05,2]
[335068118,1723803353158,200.0,9.9e-05,2]
[335068119,1723803358093,405.30195188,9.9e-05,2]
[335068120,1723803362027,273.37336231,9.9e-05,2]
[335068121,1723803371273,273.37336231,9.9e-05,2]
[335068122,1723803375491,4719.09219548,9.9e-05,2]
[335068123,1723803379380,273.37336231,9.9e-05,2]
[335068124,1723803388702,273.37336231,9.9e-05,2]
[335068125,1723803396661,273.37336231,9.9e-05,2]
[335068126,1723803405354,273.37336231,9.9e-05,2]
[335068127,1723803413834,273.37336231,9.9e-05,2]
[335068128,1723803417005,886.65210123,9.9e-05,2]
[335068129,1723803422011,273.37336231,9.9e-05,2]
[335068130,1723803429547,268.00972112,9.9e-05,2]
[335068131,1723803430165,273.37336231,9.9e-05,2]
[335068132,1723803432000,886.65210123,9.9e-05,2]
[335068133,1723803439471,273.37336231,9.9e-05,2]
[335068134,1723803446091,405.30195188,9.9e-05,2]
[335068135,1723803447260,273.37336231,9.9e-05,2]
[335068136,1723803455525,273.37336231,9.9e-05,2]
[335068137,1723803464500,273.37336231,9.9e-05,2]
[335068141,1723803469543,1712.24662285,9.9e-05,2]
[335068142,1723803473852,273.37336231,9.9e-05,2]
[335068143,1723803481850,273.37336231,9.9e-05,2]
[335068144,1723803489922,273.37336231,9.9e-05,2]
[335068145,1723803498474,273.37336231,9.9e-05,2]
[335068146,1723803501500,397.57821238,9.9e-05,2]
[335068147,1723803506783,273.37336231,9.9e-05,2]
[335068149,1723803512075,9656.22406339,0.00010081,2]
[335068150,1723803514718,273.37336231,9.9e-05,2]
[335068151,1723803524169,273.37336231,9.9e-05,2]
[335068152,1723803532992,273.37336231,9.9e-05,2]
[335068153,1723803537097,405.30195188,9.9e-05,2]
[335068154,1723803541398,273.37336231,9.9e-05,2]
[335068155,1723803549896,273.37336231,9.9e-05,2]
[335068156,1723803558170,273.37336231,9.9e-05,2]
[335068157,1723803559008,886.65210123,9.9e-05,2]
[335068158,1723803566228,273.37336231,9.9e-05,2]
[335068159,1723803574546,273.37336231,9.9e-05,2]
[335068160,1723803584230,273.37336231,9.9e-05,2]
[335068161,1723803600114,273.37336231,9.9e-05,2]
[335068162,1723803615752,273.37336231,9.9e-05,2]
[335068163,1723803631244,273.37336231,9.9e-05,2]
[335068164,1723803646694,273.37336231,9.9e-05,2]
[335068165,1723803648109,543.2575839,9.9e-05,2]
[335068166,1723803658016,886.65210123,9.9e-05,2]
[335068167,1723803663338,273.37336231,9.9e-05,2]
[335068168,1723803672142,155.37252349,9.9e-05,2]
[335068169,1723803674027,886.65210123,9.9e-05,2]
[335068170,1723803679446,273.37336231,9.9e-05,2]
[335068171,1723803691027,1006.88249431,9.9e-05,2]
[335068172,1723803695430,273.37336231,9.9e-05,2]
[335068173,1723803710794,273.37336231,9.9e-05,2]
[335068174,1723803726147,273.37336231,9.9e-05,2]
[335068175,1723803741462,273.37336231,9.9e-05,2]
[335068176,1723803758186,273.37336231,9.9e-05,2]
[335068177,1723803773822,273.37336231,9.9e-05,2]
[335068178,1723803790393,273.37336231,9.9e-05,2]
[335068179,1723803804260,-744.2446084,0.00010132,2]
[335068180,1723803804283,-300.0,0.00010279,2]
[335068181,1723803804305,-300.0,0.00010279,2]
[335068182,1723803804329,-13505.1303707,0.0001028,2]
[335068183,1723803804356,-176.28432673,0.00010544,2]
[335068184,1723803804379,-2010.9396659,0.000107,2]
[335068185,1723803804401,-288.10768054,0.00010739,2]
[335068186,1723803804425,-24900.0,0.00010765,2]
[335068187,1723803805005,161.41331604,9.9e-05,2]
[335068188,1723803806272,273.37336231,9.9e-05,2]
[335068189,1723803808340,304.07413391,0.00010739,2]
[335068190,1723803821746,273.37336231,9.9e-05,2]
[335068191,1723803837644,273.37336231,9.9e-05,2]
[335068192,1723803854364,273.37336231,9.9e-05,2]
[335068193,1723803870882,273.37336231,9.9e-05,2]
[335068194,1723803886807,273.37336231,9.9e-05,2]
[335068195,1723803902346,273.37336231,9.9e-05,2]
[335068201,1723803918501,273.37336231,9.9e-05,2]
[335068202,1723803933925,273.37336231,9.9e-05,2]
[335068203,1723803937127,-1340.26192743,0.00010421,2]
[335068204,1723803949334,273.37336231,9.9e-05,2]
[335068205,1723803964793,273.37336231,9.9e-05,2]
[335068206,1723803981083,273.37336231,9.9e-05,2]
[335068208,1723803995100,-154.79103211,0.0001026,2]
[335068209,1723803995122,-0.87323389,0.00010421,2]
[335068210,1723803997046,273.37336231,9.9e-05,2]
[335068211,1723804009467,156.07985241,0.00010081,2]
[335068212,1723804012493,273.37336231,9.9e-05,2]
[335068213,1723804029667,273.37336231,9.9e-05,2]
[335068214,1723804033101,-5997.57483929,0.0001026,2]
[335068215,1723804044536,896.1919513,9.96e-05,2]
[335068216,1723804045697,273.37336231,9.9e-05,2]
[335068217,1723804050104,-507.6866617,0.0001026,2]
[335068218,1723804061871,273.37336231,9.9e-05,2]
[335068219,1723804065059,5228.2099584,9.906e-05,2]
[335068220,1723804071098,9656.22406339,0.00010081,2]
[335068224,1723804077579,273.37336231,9.9e-05,2]
[335068227,1723804093503,273.37336231,9.9e-05,2]
[335068231,1723804110361,273.37336231,9.9e-05,2]
[335068232,1723804126893,273.37336231,9.9e-05,2]
[335068233,1723804134814,24900.0,9.615e-05,2]
[335068234,1723804143152,273.37336231,9.9e-05,2]
[335068241,1723804158114,-183.262256,0.00010226,2]
[335068242,1723804158137,-2284.00403368,0.00010421,2]
[335068243,1723804158332,-300.0,0.00010543,2]
[335068244,1723804158355,-42399.32737911,0.00010544,2]
[335068245,1723804158377,-10484.02006207,0.00010544,2]
[335068246,1723804159650,273.37336231,9.9e-05,2]
[335068247,1723804161577,55451.94050567,0.00010081,2]
[335068250,1723804174107,-183.262256,0.00010759,2]
[335068251,1723804174130,-7011.29579993,0.00010957,2]
[335068252,1723804174151,-199.055759,0.00010958,2]
[335068253,1723804174173,-156.95829692,0.00010958,2]
[335068254,1723804174195,-345.58,0.00010959,2]
[335068255,1723804175055,273.37336231,9.9e-05,2]
[335068256,1723804190651,273.37336231,9.9e-05,2]
[335068259,1723804202723,1360.97055728,0.00010957,2]
[335068260,1723804206060,273.37336231,9.9e-05,2]
[335068261,1723804221379,273.37336231,9.9e-05,2]
[335068285,1723804237948,-7480.81769472,0.00010957,2]
[335068286,1723804237959,-3091.61067347,0.00011409,2]
[335068287,1723804237969,-223.44653164,0.00011712,2]
[335068288,1723804237978,-728.34861839,0.00011712,2]
[335068289,1723804237989,-1612.67783737,0.00011712,2]
[335068290,1723804237998,-1765.39288144,0.00011731,2]
[335068291,1723804238007,-156.30965679,0.00011842,2]
[335068292,1723804238017,-4890.55091406,0.000119,2]
[335068293,1723804238028,-47676.63915174,0.000119,2]
[335068294,1723804238038,-154.95827322,0.00011987,2]
[335068296,1723804238047,-1000.0,0.00012,7]
[335068298,1723804238057,-196.75132172,0.0001212,2]
[335068300,1723804238067,-205.47944102,0.0001212,2]
[335068301,1723804238077,-9656.22406339,0.00012163,2]
[335068302,1723804238086,-404.31033644,0.00012163,2]
[335068303,1723804238095,-422.17784127,0.00012163,2]
[335068304,1723804238105,-893.66799243,0.00012219,2]
[335068305,1723804238118,-2164.8580104,0.00012219,2]
[335068306,1723804238128,-219.30191305,0.00012219,2]
[335068307,1723804238137,-55451.94050567,0.00012219,2]
[335068308,1723804238147,-156.85224876,0.00012219,2]
[335068309,1723804238156,-19781.10601725,0.00012219,2]
[335068310,1723804238166,-7007.05364373,0.00012219,2]
[335068311,1723804238175,-396.11293162,0.000123,2]
[335068312,1723804238184,-6799.84109204,0.000125,2]
[335068313,1723804238194,-809.95963071,0.00012516,2]
[335068314,1723804238203,-809.95963071,0.00012516,2]
[335068316,1723804238213,-2709.97773622,0.00012516,2]
[335068317,1723804238223,-688.45853838,0.00012551,2]
[335068319,1723804238233,-569.37734184,0.00012551,2]
[335068320,1723804238242,-933.51163948,0.00012782,2]
[335068321,1723804238252,-154.79103211,0.00012886,2]
[335068322,1723804238262,-320.16989121,0.00012898,2]
[335068323,1723804238272,-190.01321416,0.00012934,2]
[335068324,1723804238281,-601.69102478,0.00012934,2]
[335068325,1723804238291,-222.65947437,0.00012971,2]
[335068327,1723804238300,-160.33534964,0.00012971,2]
[335068329,1723804238310,-665.04001235,0.00012971,2]
[335068330,1723804238319,-634.40038606,0.00012971,3]
[335068331,1723804238330,-154.97585054,0.00012985,2]
[335068332,1723804238340,-157.04728598,0.00012985,2]
[335068333,1723804238349,-543.44301612,0.00012985,2]
[335068334,1723804238359,-261.29353764,0.00012989,2]
[335068335,1723804238369,-155.6631912,0.00012989,2]
[335068336,1723804238377,-154.79103211,0.00012991,2]
[335068337,1723804238387,-494.54531599,0.00013051,2]
[335068338,1723804238398,-301.4340064,0.00013596,2]
[335068339,1723804238408,-3000.0,0.00013699,2]
[335068340,1723804238418,-42399.32737911,0.00013971,2]
[335068341,1723804238427,-164.145231,0.00014247,2]
[335068342,1723804238438,-952.97302419,0.00015,2]
[335068343,1723804238448,-483.91054273,0.00015,2]
[335068344,1723804238458,-5242.47821719,0.00015,2]
[335068345,1723804238470,-3944.74876286,0.00018,2]
[335068346,1723804238480,-11222.86061215,0.00018,2]
[335068347,1723804238493,-52567.1900658,0.00018437,2]
[335068348,1723804238502,-4871.30722908,0.00018447,2]
[335068349,1723804238511,-205.826204,0.00019178,2]
[335068350,1723804238520,-251.0,0.00019178,2]
[335068351,1723804238530,-214.0,0.000195,10]
[335068352,1723804238540,-156.57509394,0.0002,2]
[335068353,1723804238549,-1260.16836963,0.0002,2]
[335068354,1723804238558,-243.17908813,0.0002,2]
[335068355,1723804238570,-165.05787817,0.0002,2]
[335068356,1723804238579,-2281.00895159,0.000205,2]
[335068357,1723804238590,-164.145231,0.00021467,2]
[335068358,1723804238599,-164.145231,0.00028687,2]
[335068359,1723804238609,-9435.70289252,0.00029,2]
[335068360,1723804238619,-1482.4893813,0.00029828,2]
[335068361,1723804238628,-21604.46782733,0.0002989,2]
[335068362,1723804238637,-150.0,0.000299,2]
[335068363,1723804238647,-52567.1900658,0.0003109,4]
[335068364,1723804238658,-19685.90759618,0.000311,2]
[335068365,1723804238667,-2804.1,0.000311,14]
[335068366,1723804238676,-150.0,0.00031566,14]
[335068367,1723804238685,-235.28,0.00031566,14]
[335068368,1723804238695,-22043.08058319,0.00031566,7]
[335068369,1723804238704,-6044.59356258,0.00031566,30]
[335068370,1723804238713,-11550.02268888,0.00031566,30]
[335068371,1723804238722,-5323.66227867,0.00031566,30]
[335068372,1723804238732,-90567.56798779,0.00031566,7]
[335068373,1723804238766,273.37336231,9.9e-05,2]
[335068374,1723804238809,-217358.45022399,0.00031566,7]
[335068383,1723804239847,-6815.21813281,0.00031566,7]
[335068396,1723804240123,-223.31574828,0.00013597,2]
[335068397,1723804240132,-253369.25236893,0.00031566,7]
[335068399,1723804240342,-682.38980911,0.00031566,7]
[335068406,1723804243994,-17.29602955,0.00010958,2]
[335068407,1723804244067,-2124.8772303,0.00010958,2]
[335068408,1723804244078,-1500.0,0.00012,2]
[335068409,1723804244090,-322.64769601,0.00012898,2]
[335068431,1723804246043,-279.04332877,0.00012898,2]
[335068434,1723804246054,-155.05125079,0.00014519,2]
[335068436,1723804246064,-5600.53972397,0.00031566,7]
[335068438,1723804246073,-72834.87264546,0.00031566,30]
[335068443,1723804253434,273.37336231,9.9e-05,2]
[335068444,1723804270112,273.37336231,9.9e-05,2]
[335068445,1723804285725,273.37336231,9.9e-05,2]
[335068446,1723804301041,273.37336231,9.9e-05,2]
[335068447,1723804316981,273.37336231,9.9e-05,2]
[335068450,1723804333387,273.37336231,9.9e-05,2]
[335068451,1723804348805,273.37336231,9.9e-05,2]
[335068452,1723804364235,273.37336231,9.9e-05,2]
[335068453,1723804379680,273.37336231,9.9e-05,2]
[335068454,1723804395342,273.37336231,9.9e-05,2]
[335068455,1723804410770,273.37336231,9.9e-05,2]
[335068457,1723804426595,273.37336231,9.9e-05,2]
[335068458,1723804441963,273.37336231,9.9e-05,2]
[335068459,1723804458685,273.37336231,9.9e-05,2]
[335068460,1723804475617,273.37336231,9.9e-05,2]
[335068461,1723804491351,273.37336231,9.9e-05,2]
[335068462,1723804506826,273.37336231,9.9e-05,2]
[335068463,1723804522294,273.37336231,9.9e-05,2]
[335068464,1723804538183,273.37336231,9.9e-05,2]
[335068465,1723804553826,273.37336231,9.9e-05,2]
[335068466,1723804570037,273.37336231,9.9e-05,2]
[335068467,1723804585465,273.37336231,9.9e-05,2]
[335068468,1723804601366,273.37336231,9.9e-05,2]
[335068469,1723804616734,273.37336231,9.9e-05,2]
[335068471,1723804632869,273.37336231,9.9e-05,2]
[335068472,1723804648994,273.37336231,9.9e-05,2]
[335068473,1723804664492,273.37336231,9.9e-05,2]
[335068474,1723804674651,3740.042458,0.00010055,2]
[335068475,1723804679981,273.37336231,9.9e-05,2]
[335068476,1723804695373,273.37336231,9.9e-05,2]
[335068477,1723804703641,42399.32737911,0.00010081,2]
[335068478,1723804710726,273.37336231,9.9e-05,2]
[335068479,1723804727941,273.37336231,9.9e-05,2]
[335068480,1723804739105,14516.26051424,0.00010081,2]
[335068481,1723804743163,273.37336231,9.9e-05,2]
[335068483,1723804758627,273.37336231,9.9e-05,2]
[335068484,1723804774231,273.37336231,9.9e-05,2]
[335068485,1723804790249,273.37336231,9.9e-05,2]
[335068486,1723804805442,2126.42374328,0.00010081,2]
[335068487,1723804805723,273.37336231,9.9e-05,2]
[335068488,1723804821278,273.37336231,9.9e-05,2]
[335068489,1723804827986,404.31033644,0.00010081,2]
[335068490,1723804836735,273.37336231,9.9e-05,2]
[335068491,1723804839193,809.95963071,0.00010081,2]
[335068492,1723804852192,1591.95257953,0.00010081,2]
[335068493,1723804852648,273.37336231,9.9e-05,2]